[Event "Titled Tuesday Blitz March 21 Late 2023"]
[White "Gholami Orimi, Mahdi"]
[Black "Van Foreest, Jorden"]
[WhiteFideId "12558486"]
[BlackFideId "1039784"]
[WhiteElo "2363"]
[BlackElo "2633"]
[Result "1-0"]
[Round "09"]
[TimeControl "180+2"]
[Date "2023.03.21"]
[WhiteClock "0:00:17"]
[BlackClock "0:00:06"]

1. d4 {[%clk 0:03:00]}  d5 {[%clk 0:02:56]} 2. c4 {[%clk 0:03:01]}  c6 {[%clk 0:02:56]} 3. Nf3 {[%clk 0:03:00]}  Nf6 {[%clk 0:02:56]} 4. g3 {[%clk 0:03:00]}  g6 {[%clk 0:02:56]} 5. Bg2 {[%clk 0:02:59]}  Bg7 {[%clk 0:02:56]} 6. O-O {[%clk 0:02:58]}  O-O {[%clk 0:02:56]} 7. Ne5 {[%clk 0:02:58]}  Ng4 {[%clk 0:02:43]} 8. cxd5 {[%clk 0:02:58]}  cxd5 {[%clk 0:02:42]} 9. Bf4 {[%clk 0:02:53]}  Nc6 {[%clk 0:02:33]} 10. Nf3 {[%clk 0:02:39]}  Qb6 {[%clk 0:02:29]} 11. Nc3 {[%clk 0:02:37]}  Rd8 {[%clk 0:02:24]} 12. Na4 {[%clk 0:02:22]}  Qb5 {[%clk 0:02:24]} 13. Rc1 {[%clk 0:02:20]}  Bf5 {[%clk 0:02:11]} 14. b3 {[%clk 0:02:06]}  Rac8 {[%clk 0:02:08]} 15. Qd2 {[%clk 0:01:54]}  Nf6 {[%clk 0:01:49]} 16. Ne5 {[%clk 0:01:52]}  Ne4 {[%clk 0:01:43]} 17. Qb2 {[%clk 0:01:46]}  Nxe5 {[%clk 0:01:38]} 18. dxe5 {[%clk 0:01:35]}  h5 {[%clk 0:01:33]} 19. Be3 {[%clk 0:01:32]}  h4 {[%clk 0:01:02]} 20. Bxa7 {[%clk 0:01:23]}  hxg3 {[%clk 0:00:56]} 21. hxg3 {[%clk 0:01:23]}  Bh6 {[%clk 0:00:50]} 22. e3 {[%clk 0:01:18]}  Ng5 {[%clk 0:00:42]} 23. Bd4 {[%clk 0:01:09]}  Be4 {[%clk 0:00:38]} 24. Nc3 {[%clk 0:01:06]}  Qd7 {[%clk 0:00:39]} 25. f4 {[%clk 0:00:58]}  Bxg2 {[%clk 0:00:36]} 26. Qxg2 {[%clk 0:00:58]}  Ne6 {[%clk 0:00:34]} 27. Bb6 {[%clk 0:00:53]}  Re8 {[%clk 0:00:30]} 28. Qxd5 {[%clk 0:00:52]}  Qc6 {[%clk 0:00:28]} 29. Qxc6 {[%clk 0:00:44]}  bxc6 {[%clk 0:00:28]} 30. Na4 {[%clk 0:00:45]}  f6 {[%clk 0:00:28]} 31. exf6 {[%clk 0:00:43]}  exf6 {[%clk 0:00:29]} 32. Kf2 {[%clk 0:00:43]}  Bf8 {[%clk 0:00:29]} 33. Rfd1 {[%clk 0:00:43]}  Ng7 {[%clk 0:00:26]} 34. Kf3 {[%clk 0:00:39]}  Re6 {[%clk 0:00:23]} 35. Bc5 {[%clk 0:00:37]}  Rce8 {[%clk 0:00:23]} 36. Rc3 {[%clk 0:00:36]}  Nf5 {[%clk 0:00:22]} 37. Rdd3 {[%clk 0:00:29]}  g5 {[%clk 0:00:23]} 38. Bxf8 {[%clk 0:00:26]}  Rxf8 {[%clk 0:00:24]} 39. e4 {[%clk 0:00:25]}  Nh6 {[%clk 0:00:22]} 40. Nc5 {[%clk 0:00:26]}  Re7 {[%clk 0:00:22]} 41. Rd7 {[%clk 0:00:26]}  Ree8 {[%clk 0:00:20]} 42. Rcd3 {[%clk 0:00:26]}  Nf7 {[%clk 0:00:17]} 43. Rc7 {[%clk 0:00:24]}  Rc8 {[%clk 0:00:11]} 44. Rdd7 {[%clk 0:00:22]}  Rxc7 {[%clk 0:00:11]} 45. Rxc7 {[%clk 0:00:23]}  Rd8 {[%clk 0:00:08]} 46. Rxc6 {[%clk 0:00:23]}  Rd2 {[%clk 0:00:09]} 47. Rxf6 {[%clk 0:00:22]}  gxf4 {[%clk 0:00:09]} 48. gxf4 {[%clk 0:00:22]}  Rxa2 {[%clk 0:00:09]} 49. e5 {[%clk 0:00:22]}  Rc2 {[%clk 0:00:10]} 50. Ne4 {[%clk 0:00:22]}  Rb2 {[%clk 0:00:10]} 51. Rb6 {[%clk 0:00:21]}  Kg7 {[%clk 0:00:07]} 52. e6 {[%clk 0:00:21]}  Nh6 {[%clk 0:00:07]} 53. e7 {[%clk 0:00:20]}  Kf7 {[%clk 0:00:07]} 54. Rxh6 {[%clk 0:00:21]}  Rxb3+ {[%clk 0:00:07]} 55. Kg4 {[%clk 0:00:21]}  Kxe7 {[%clk 0:00:08]} 56. Ng5 {[%clk 0:00:22]}  Rb1 {[%clk 0:00:08]} 57. Rh7+ {[%clk 0:00:20]}  Kf6 {[%clk 0:00:08]} 58. Rh6+ {[%clk 0:00:20]}  Kg7 {[%clk 0:00:08]} 59. Rh7+ {[%clk 0:00:20]}  Kg8 {[%clk 0:00:07]} 60. Ra7 {[%clk 0:00:20]}  Rb4 {[%clk 0:00:08]} 61. Ne6 {[%clk 0:00:19]}  Re4 {[%clk 0:00:07]} 62. Kf5 {[%clk 0:00:19]}  Rb4 {[%clk 0:00:08]} 63. Kf6 {[%clk 0:00:19]}  Rb6 {[%clk 0:00:08]} 64. f5 {[%clk 0:00:19]}  Rc6 {[%clk 0:00:08]} 65. Kg6 {[%clk 0:00:18]}  Rc8 {[%clk 0:00:05]} 66. f6 {[%clk 0:00:18]}  Kh8 {[%clk 0:00:06]} 67. Rh7+ {[%clk 0:00:17]} 1-0


[Site "https://www.chess.com"]

[Event "Titled Tuesday Blitz March 21 Late 2023"]
[White "Carlsen, Magnus"]
[Black "Matlakov, Maxim"]
[WhiteFideId "1503014"]
[BlackFideId "4168003"]
[WhiteElo "2852"]
[BlackElo "2666"]
[Result "1-0"]
[Round "09"]
[TimeControl "180+2"]
[Date "2023.03.21"]
[WhiteClock "0:00:28"]
[BlackClock "0:00:03"]

1. d4 {[%clk 0:03:00]}  d5 {[%clk 0:02:59]} 2. c4 {[%clk 0:02:59]}  c6 {[%clk 0:02:59]} 3. Nf3 {[%clk 0:02:59]}  Nf6 {[%clk 0:02:59]} 4. g3 {[%clk 0:02:54]}  Bf5 {[%clk 0:02:57]} 5. Nc3 {[%clk 0:02:53]}  e6 {[%clk 0:02:57]} 6. Nh4 {[%clk 0:02:53]}  Be4 {[%clk 0:02:57]} 7. f3 {[%clk 0:02:48]}  Bg6 {[%clk 0:02:57]} 8. Qb3 {[%clk 0:02:47]}  Qb6 {[%clk 0:02:56]} 9. c5 {[%clk 0:02:45]}  Qxb3 {[%clk 0:02:56]} 10. axb3 {[%clk 0:02:45]}  Na6 {[%clk 0:02:56]} 11. Nxg6 {[%clk 0:02:43]}  hxg6 {[%clk 0:02:55]} 12. Ra4 {[%clk 0:02:29]}  Nc7 {[%clk 0:02:14]} 13. Bf4 {[%clk 0:02:24]}  Kd7 {[%clk 0:02:06]} 14. b4 {[%clk 0:02:17]}  Be7 {[%clk 0:01:39]} 15. Bxc7 {[%clk 0:01:59]}  Kxc7 {[%clk 0:01:39]} 16. b5 {[%clk 0:01:59]}  b6 {[%clk 0:00:53]} 17. b4 {[%clk 0:01:57]}  cxb5 {[%clk 0:00:53]} 18. Nxb5+ {[%clk 0:01:56]}  Kb7 {[%clk 0:00:54]} 19. e3 {[%clk 0:01:42]}  a5 {[%clk 0:00:54]} 20. bxa5 {[%clk 0:01:37]}  bxc5 {[%clk 0:00:53]} 21. dxc5 {[%clk 0:01:37]}  Bxc5 {[%clk 0:00:52]} 22. Bd3 {[%clk 0:01:36]}  Rxa5 {[%clk 0:00:51]} 23. Rxa5 {[%clk 0:01:33]}  Bb4+ {[%clk 0:00:51]} 24. Ke2 {[%clk 0:01:34]}  Bxa5 {[%clk 0:00:51]} 25. Nd6+ {[%clk 0:01:35]}  Kc7 {[%clk 0:00:46]} 26. Nxf7 {[%clk 0:01:36]}  Rb8 {[%clk 0:00:41]} 27. Rc1+ {[%clk 0:01:35]}  Kd7 {[%clk 0:00:40]} 28. Rc2 {[%clk 0:01:33]}  Bc7 {[%clk 0:00:39]} 29. Bxg6 {[%clk 0:01:32]}  Rb3 {[%clk 0:00:35]} 30. Bd3 {[%clk 0:01:25]}  Bb6 {[%clk 0:00:30]} 31. Ne5+ {[%clk 0:01:24]}  Kd6 {[%clk 0:00:29]} 32. f4 {[%clk 0:01:24]}  Nd7 {[%clk 0:00:17]} 33. Rc6+ {[%clk 0:01:20]}  Ke7 {[%clk 0:00:17]} 34. Ng6+ {[%clk 0:01:20]}  Kf7 {[%clk 0:00:15]} 35. g4 {[%clk 0:01:06]}  Rb2+ {[%clk 0:00:15]} 36. Rc2 {[%clk 0:00:55]}  Rxc2+ {[%clk 0:00:15]} 37. Bxc2 {[%clk 0:00:56]}  e5 {[%clk 0:00:16]} 38. h4 {[%clk 0:00:48]}  d4 {[%clk 0:00:14]} 39. fxe5 {[%clk 0:00:31]}  dxe3 {[%clk 0:00:13]} 40. Bf5 {[%clk 0:00:31]}  Nf8 {[%clk 0:00:08]} 41. Nf4 {[%clk 0:00:29]}  Bc7 {[%clk 0:00:03]} 42. e6+ {[%clk 0:00:28]}  Ke8 {[%clk 0:00:03]} 43. Nd5 {[%clk 0:00:28]} 1-0


[Site "https://www.chess.com"]

[Event "Titled Tuesday Blitz March 21 Late 2023"]
[White "Sargsyan, Shant"]
[Black "Maghsoodloo, Parham"]
[WhiteFideId "13306766"]
[BlackFideId "12539929"]
[WhiteElo "2628"]
[BlackElo "2647"]
[Result "1-0"]
[Round "09"]
[TimeControl "180+2"]
[Date "2023.03.21"]
[WhiteClock "0:00:19"]
[BlackClock "0:00:04"]

1. c4 {[%clk 0:03:00]}  Nf6 {[%clk 0:02:34]} 2. g3 {[%clk 0:03:01]}  e6 {[%clk 0:02:34]} 3. Bg2 {[%clk 0:03:01]}  d5 {[%clk 0:02:35]} 4. d4 {[%clk 0:03:01]}  Bb4+ {[%clk 0:02:34]} 5. Bd2 {[%clk 0:03:00]}  a5 {[%clk 0:02:34]} 6. Nf3 {[%clk 0:02:59]}  O-O {[%clk 0:02:35]} 7. Qc2 {[%clk 0:02:54]}  Nbd7 {[%clk 0:02:34]} 8. O-O {[%clk 0:02:52]}  c6 {[%clk 0:02:34]} 9. Bf4 {[%clk 0:02:47]}  b6 {[%clk 0:02:31]} 10. cxd5 {[%clk 0:02:36]}  cxd5 {[%clk 0:02:30]} 11. a3 {[%clk 0:02:36]}  Be7 {[%clk 0:02:30]} 12. Nc3 {[%clk 0:02:35]}  Ba6 {[%clk 0:02:30]} 13. Rfc1 {[%clk 0:02:32]}  Rc8 {[%clk 0:02:30]} 14. Qa4 {[%clk 0:02:26]}  Rc4 {[%clk 0:01:51]} 15. Qd1 {[%clk 0:02:26]}  Qa8 {[%clk 0:01:51]} 16. e3 {[%clk 0:02:23]}  Rfc8 {[%clk 0:01:50]} 17. Bf1 {[%clk 0:02:18]}  R4c6 {[%clk 0:01:50]} 18. Nb5 {[%clk 0:02:12]}  Qb7 {[%clk 0:01:50]} 19. Rxc6 {[%clk 0:02:09]}  Rxc6 {[%clk 0:01:50]} 20. Rc1 {[%clk 0:02:09]}  Ne4 {[%clk 0:01:49]} 21. h4 {[%clk 0:01:56]}  h6 {[%clk 0:01:48]} 22. h5 {[%clk 0:01:31]}  Nef6 {[%clk 0:01:47]} 23. Rxc6 {[%clk 0:01:26]}  Qxc6 {[%clk 0:01:47]} 24. Na7 {[%clk 0:01:27]}  Qb7 {[%clk 0:01:46]} 25. Bxa6 {[%clk 0:01:27]}  Qxa6 {[%clk 0:01:47]} 26. Nc6 {[%clk 0:01:27]}  Bf8 {[%clk 0:01:47]} 27. Nfe5 {[%clk 0:01:25]}  Nxe5 {[%clk 0:01:46]} 28. Nxe5 {[%clk 0:01:24]}  Qc8 {[%clk 0:01:43]} 29. g4 {[%clk 0:01:23]}  Bd6 {[%clk 0:01:30]} 30. Kg2 {[%clk 0:01:23]}  Bxe5 {[%clk 0:01:27]} 31. Bxe5 {[%clk 0:01:24]}  Nd7 {[%clk 0:01:24]} 32. Bg3 {[%clk 0:01:24]}  Qc4 {[%clk 0:01:23]} 33. b3 {[%clk 0:01:10]}  Qc6 {[%clk 0:01:23]} 34. Qd3 {[%clk 0:01:00]}  Nf6 {[%clk 0:01:16]} 35. f3 {[%clk 0:00:58]}  b5 {[%clk 0:01:13]} 36. Be1 {[%clk 0:00:58]}  a4 {[%clk 0:01:14]} 37. bxa4 {[%clk 0:00:56]}  bxa4 {[%clk 0:01:14]} 38. Bb4 {[%clk 0:00:52]}  Nd7 {[%clk 0:01:15]} 39. Bc5 {[%clk 0:00:45]}  Qb7 {[%clk 0:01:03]} 40. Bb4 {[%clk 0:00:45]}  Qc7 {[%clk 0:00:47]} 41. Qb5 {[%clk 0:00:40]}  Qc2+ {[%clk 0:00:47]} 42. Kg3 {[%clk 0:00:40]}  Nf6 {[%clk 0:00:44]} 43. Qb8+ {[%clk 0:00:33]}  Kh7 {[%clk 0:00:44]} 44. Be7 {[%clk 0:00:34]}  Ng8 {[%clk 0:00:40]} 45. Bb4 {[%clk 0:00:32]}  Qe2 {[%clk 0:00:33]} 46. Qf4 {[%clk 0:00:26]}  f6 {[%clk 0:00:25]} 47. e4 {[%clk 0:00:26]}  Qc4 {[%clk 0:00:17]} 48. exd5 {[%clk 0:00:25]}  Qxd5 {[%clk 0:00:17]} 49. Qe4+ {[%clk 0:00:26]}  f5 {[%clk 0:00:13]} 50. Qxd5 {[%clk 0:00:21]}  exd5 {[%clk 0:00:13]} 51. Kf4 {[%clk 0:00:21]}  fxg4 {[%clk 0:00:13]} 52. fxg4 {[%clk 0:00:22]}  Nf6 {[%clk 0:00:13]} 53. Be7 {[%clk 0:00:20]}  Ne4 {[%clk 0:00:14]} 54. Ke5 {[%clk 0:00:20]}  Nf2 {[%clk 0:00:06]} 55. Kxd5 {[%clk 0:00:20]}  Nxg4 {[%clk 0:00:06]} 56. Ke6 {[%clk 0:00:21]}  g6 {[%clk 0:00:04]} 57. d5 {[%clk 0:00:19]} 1-0


[Site "https://www.chess.com"]

[Event "Titled Tuesday Blitz March 21 Late 2023"]
[White "Bluebaum, Matthias"]
[Black "Vasquez Schroeder, Rodrigo"]
[WhiteFideId "24651516"]
[BlackFideId "3400042"]
[WhiteElo "2638"]
[BlackElo "2600"]
[Result "1-0"]
[Round "09"]
[TimeControl "180+2"]
[Date "2023.03.21"]
[WhiteClock "0:00:21"]
[BlackClock "0:00:02"]

1. d4 {[%clk 0:03:00]}  d5 {[%clk 0:02:59]} 2. c4 {[%clk 0:03:00]}  c6 {[%clk 0:03:00]} 3. Nf3 {[%clk 0:03:01]}  Nf6 {[%clk 0:03:00]} 4. Nc3 {[%clk 0:03:01]}  e6 {[%clk 0:03:01]} 5. Qc2 {[%clk 0:02:59]}  Nbd7 {[%clk 0:02:55]} 6. e4 {[%clk 0:02:59]}  dxe4 {[%clk 0:02:54]} 7. Nxe4 {[%clk 0:03:00]}  Nxe4 {[%clk 0:02:54]} 8. Qxe4 {[%clk 0:03:01]}  Bb4+ {[%clk 0:02:54]} 9. Bd2 {[%clk 0:03:01]}  Bxd2+ {[%clk 0:02:54]} 10. Nxd2 {[%clk 0:03:02]}  c5 {[%clk 0:02:50]} 11. dxc5 {[%clk 0:03:01]}  Qa5 {[%clk 0:02:39]} 12. a3 {[%clk 0:02:57]}  Qxc5 {[%clk 0:02:32]} 13. b4 {[%clk 0:02:56]}  Qc7 {[%clk 0:02:27]} 14. Be2 {[%clk 0:02:56]}  Rb8 {[%clk 0:02:13]} 15. Qd4 {[%clk 0:02:41]}  Nf6 {[%clk 0:02:05]} 16. Qxa7 {[%clk 0:02:36]}  O-O {[%clk 0:01:58]} 17. O-O {[%clk 0:02:35]}  Rd8 {[%clk 0:01:56]} 18. Qe3 {[%clk 0:02:32]}  e5 {[%clk 0:01:52]} 19. h3 {[%clk 0:02:27]}  Be6 {[%clk 0:01:51]} 20. Rac1 {[%clk 0:02:26]}  Rd4 {[%clk 0:01:43]} 21. Rfd1 {[%clk 0:01:58]}  Rbd8 {[%clk 0:01:41]} 22. Nf3 {[%clk 0:01:57]}  Rxd1+ {[%clk 0:01:24]} 23. Bxd1 {[%clk 0:01:56]}  e4 {[%clk 0:01:11]} 24. Nd4 {[%clk 0:01:50]}  Bd7 {[%clk 0:01:10]} 25. Be2 {[%clk 0:01:48]}  h6 {[%clk 0:01:08]} 26. c5 {[%clk 0:01:43]}  Re8 {[%clk 0:01:03]} 27. Nb5 {[%clk 0:01:42]}  Bxb5 {[%clk 0:00:57]} 28. Bxb5 {[%clk 0:01:43]}  Rd8 {[%clk 0:00:57]} 29. Be2 {[%clk 0:01:36]}  Qe5 {[%clk 0:00:55]} 30. Qc3 {[%clk 0:01:17]}  Qg5 {[%clk 0:00:53]} 31. Rd1 {[%clk 0:01:13]}  Rxd1+ {[%clk 0:00:52]} 32. Bxd1 {[%clk 0:01:14]}  Nd5 {[%clk 0:00:52]} 33. Qd4 {[%clk 0:01:01]}  Nf4 {[%clk 0:00:35]} 34. Qxe4 {[%clk 0:01:01]}  Nxh3+ {[%clk 0:00:35]} 35. Kf1 {[%clk 0:01:01]}  Nf4 {[%clk 0:00:31]} 36. Qxb7 {[%clk 0:00:46]}  Qd8 {[%clk 0:00:24]} 37. Qf3 {[%clk 0:00:44]}  Qd2 {[%clk 0:00:23]} 38. g3 {[%clk 0:00:37]}  Nd3 {[%clk 0:00:23]} 39. Qe2 {[%clk 0:00:37]}  Qc3 {[%clk 0:00:22]} 40. Bc2 {[%clk 0:00:22]}  Ne5 {[%clk 0:00:11]} 41. f4 {[%clk 0:00:23]}  Nd7 {[%clk 0:00:09]} 42. Qd3 {[%clk 0:00:21]}  Qa1+ {[%clk 0:00:08]} 43. Kg2 {[%clk 0:00:21]}  Nf8 {[%clk 0:00:08]} 44. c6 {[%clk 0:00:20]}  Qf6 {[%clk 0:00:08]} 45. Qc4 {[%clk 0:00:19]}  Qd6 {[%clk 0:00:03]} 46. c7 {[%clk 0:00:20]}  Qd2+ {[%clk 0:00:02]} 47. Kf1 {[%clk 0:00:20]}  Qc1+ {[%clk 0:00:02]} 48. Ke2 {[%clk 0:00:21]} 1-0


[Site "https://www.chess.com"]

[Event "Titled Tuesday Blitz March 21 Late 2023"]
[White "Duda, Jan-Krzysztof"]
[Black "Dardha, Daniel"]
[WhiteFideId "1170546"]
[BlackFideId "240990"]
[WhiteElo "2790"]
[BlackElo "2581"]
[Result "0-1"]
[Round "09"]
[TimeControl "180+2"]
[Date "2023.03.21"]
[WhiteClock "0:00:02"]
[BlackClock "0:00:02"]

1. b4 {[%clk 0:03:00]}  e5 {[%clk 0:02:56]} 2. Bb2 {[%clk 0:02:56]}  Bxb4 {[%clk 0:02:56]} 3. Bxe5 {[%clk 0:02:56]}  Nf6 {[%clk 0:02:57]} 4. e3 {[%clk 0:02:57]}  O-O {[%clk 0:02:53]} 5. Nf3 {[%clk 0:02:57]}  Re8 {[%clk 0:02:54]} 6. Be2 {[%clk 0:02:57]}  d5 {[%clk 0:02:53]} 7. O-O {[%clk 0:02:57]}  Bf8 {[%clk 0:02:53]} 8. c4 {[%clk 0:02:55]}  dxc4 {[%clk 0:02:46]} 9. Bxc4 {[%clk 0:02:56]}  c5 {[%clk 0:02:41]} 10. Bb2 {[%clk 0:02:33]}  Be6 {[%clk 0:02:37]} 11. Bxe6 {[%clk 0:02:27]}  Rxe6 {[%clk 0:02:38]} 12. Qc2 {[%clk 0:02:27]}  h6 {[%clk 0:02:35]} 13. Nc3 {[%clk 0:02:19]}  Nc6 {[%clk 0:02:35]} 14. a3 {[%clk 0:02:19]}  Qd7 {[%clk 0:02:34]} 15. Rfd1 {[%clk 0:02:20]}  Rc8 {[%clk 0:02:29]} 16. Ne2 {[%clk 0:02:20]}  Nd5 {[%clk 0:02:25]} 17. Rac1 {[%clk 0:02:16]}  Ree8 {[%clk 0:02:22]} 18. Ng3 {[%clk 0:02:13]}  b5 {[%clk 0:02:17]} 19. d3 {[%clk 0:02:01]}  Nb6 {[%clk 0:02:06]} 20. Ne4 {[%clk 0:01:58]}  Na4 {[%clk 0:02:07]} 21. Ba1 {[%clk 0:01:57]}  Qe6 {[%clk 0:02:07]} 22. Qb1 {[%clk 0:01:53]}  a6 {[%clk 0:02:05]} 23. h3 {[%clk 0:01:53]}  Red8 {[%clk 0:02:01]} 24. Nc3 {[%clk 0:01:32]}  Nb6 {[%clk 0:01:57]} 25. Ne2 {[%clk 0:01:26]}  Na5 {[%clk 0:01:51]} 26. Bc3 {[%clk 0:01:18]}  Nc6 {[%clk 0:01:43]} 27. Nf4 {[%clk 0:01:17]}  Qf5 {[%clk 0:01:42]} 28. g4 {[%clk 0:01:01]}  Qd7 {[%clk 0:01:37]} 29. d4 {[%clk 0:00:55]}  cxd4 {[%clk 0:01:30]} 30. Nxd4 {[%clk 0:00:56]}  Qe8 {[%clk 0:01:00]} 31. Nf5 {[%clk 0:00:53]}  Rxd1+ {[%clk 0:00:49]} 32. Rxd1 {[%clk 0:00:54]}  Ne5 {[%clk 0:00:46]} 33. Bb4 {[%clk 0:00:44]}  Nbc4 {[%clk 0:00:40]} 34. Nd5 {[%clk 0:00:33]}  Kh8 {[%clk 0:00:31]} 35. Nxh6 {[%clk 0:00:25]}  Bxb4 {[%clk 0:00:25]} 36. axb4 {[%clk 0:00:26]}  Nf3+ {[%clk 0:00:11]} 37. Kg2 {[%clk 0:00:24]}  Nfd2 {[%clk 0:00:05]} 38. Qf5 {[%clk 0:00:20]}  gxh6 {[%clk 0:00:05]} 39. Nf6 {[%clk 0:00:05]}  Qc6+ {[%clk 0:00:05]} 40. e4 {[%clk 0:00:03]}  Kg7 {[%clk 0:00:06]} 41. Nh5+ {[%clk 0:00:03]}  Kf8 {[%clk 0:00:06]} 42. Nf6 {[%clk 0:00:02]}  Qe6 {[%clk 0:00:06]} 43. Qf4 {[%clk 0:00:02]}  Rc6 {[%clk 0:00:06]} 44. Qxh6+ {[%clk 0:00:02]}  Ke7 {[%clk 0:00:06]} 45. g5 {[%clk 0:00:02]}  Qe5 {[%clk 0:00:02]} 0-1


[Site "https://www.chess.com"]

[Event "Titled Tuesday Blitz March 21 Late 2023"]
[White "Gharibyan, Mamikon"]
[Black "Sarana, Alexey"]
[WhiteFideId "13308300"]
[BlackFideId "24133795"]
[WhiteElo "2445"]
[BlackElo "2714"]
[Result "0-1"]
[Round "09"]
[TimeControl "180+2"]
[Date "2023.03.21"]
[WhiteClock "0:00:05"]
[BlackClock "0:00:52"]

1. d4 {[%clk 0:02:56]}  Nf6 {[%clk 0:02:59]} 2. c4 {[%clk 0:02:56]}  e6 {[%clk 0:02:59]} 3. Nf3 {[%clk 0:02:56]}  d5 {[%clk 0:03:00]} 4. g3 {[%clk 0:02:53]}  Bb4+ {[%clk 0:03:00]} 5. Bd2 {[%clk 0:02:51]}  Be7 {[%clk 0:03:01]} 6. Bg2 {[%clk 0:02:50]}  c6 {[%clk 0:03:02]} 7. Qc2 {[%clk 0:02:50]}  b6 {[%clk 0:03:02]} 8. O-O {[%clk 0:02:48]}  Ba6 {[%clk 0:03:02]} 9. b3 {[%clk 0:02:45]}  O-O {[%clk 0:02:59]} 10. Rd1 {[%clk 0:02:44]}  Nbd7 {[%clk 0:02:58]} 11. a4 {[%clk 0:02:43]}  c5 {[%clk 0:02:57]} 12. a5 {[%clk 0:02:34]}  Qc8 {[%clk 0:02:54]} 13. e3 {[%clk 0:02:29]}  Bb7 {[%clk 0:02:39]} 14. cxd5 {[%clk 0:02:14]}  Nxd5 {[%clk 0:02:37]} 15. Qb2 {[%clk 0:02:04]}  N5f6 {[%clk 0:02:30]} 16. Rc1 {[%clk 0:01:59]}  Bc6 {[%clk 0:02:23]} 17. b4 {[%clk 0:01:55]}  Rb8 {[%clk 0:02:20]} 18. axb6 {[%clk 0:01:47]}  axb6 {[%clk 0:02:21]} 19. b5 {[%clk 0:01:46]}  Bb7 {[%clk 0:02:18]} 20. Na3 {[%clk 0:01:45]}  Bd5 {[%clk 0:02:14]} 21. dxc5 {[%clk 0:01:30]}  Nxc5 {[%clk 0:02:12]} 22. Bb4 {[%clk 0:01:12]}  Qb7 {[%clk 0:02:11]} 23. Bxc5 {[%clk 0:01:12]}  Bxc5 {[%clk 0:02:08]} 24. Qe2 {[%clk 0:01:12]}  Ne4 {[%clk 0:01:52]} 25. Nc4 {[%clk 0:01:08]}  Rbc8 {[%clk 0:01:51]} 26. h4 {[%clk 0:01:06]}  Rfd8 {[%clk 0:01:51]} 27. Nce5 {[%clk 0:01:03]}  h6 {[%clk 0:01:48]} 28. Ra4 {[%clk 0:00:50]}  Bd6 {[%clk 0:01:34]} 29. Nc4 {[%clk 0:00:43]}  Rc5 {[%clk 0:01:11]} 30. Kh2 {[%clk 0:00:38]}  Bb8 {[%clk 0:00:59]} 31. Nd4 {[%clk 0:00:17]}  Qc7 {[%clk 0:00:57]} 32. Nc6 {[%clk 0:00:05]}  Nxg3 {[%clk 0:00:53]} 33. fxg3 {[%clk 0:00:05]}  Qxg3+ {[%clk 0:00:54]} 34. Kg1 {[%clk 0:00:05]}  Qh2+ {[%clk 0:00:55]} 35. Kf1 {[%clk 0:00:05]}  Bxg2+ {[%clk 0:00:51]} 36. Qxg2 {[%clk 0:00:05]}  Rf5+ {[%clk 0:00:52]} 0-1


[Site "https://www.chess.com"]

[Event "Titled Tuesday Blitz March 21 Late 2023"]
[White "Kobo, Ori"]
[Black "Indjic, Aleksandar"]
[WhiteFideId "2812320"]
[BlackFideId "911925"]
[WhiteElo "2447"]
[BlackElo "2614"]
[Result "0-1"]
[Round "09"]
[TimeControl "180+2"]
[Date "2023.03.21"]
[WhiteClock "0:00:02"]
[BlackClock "0:00:18"]

1. b3 {[%clk 0:03:00]}  d5 {[%clk 0:02:54]} 2. Bb2 {[%clk 0:03:01]}  Bf5 {[%clk 0:02:52]} 3. d3 {[%clk 0:03:01]}  e6 {[%clk 0:02:51]} 4. Nd2 {[%clk 0:03:01]}  Nf6 {[%clk 0:02:50]} 5. g3 {[%clk 0:03:01]}  h6 {[%clk 0:02:49]} 6. Bg2 {[%clk 0:03:02]}  Bh7 {[%clk 0:02:49]} 7. e4 {[%clk 0:03:02]}  a5 {[%clk 0:02:49]} 8. a4 {[%clk 0:03:01]}  Be7 {[%clk 0:02:48]} 9. Nh3 {[%clk 0:03:00]}  c6 {[%clk 0:02:47]} 10. O-O {[%clk 0:02:57]}  Na6 {[%clk 0:02:47]} 11. Nf4 {[%clk 0:02:54]}  Nc5 {[%clk 0:02:46]} 12. Qe2 {[%clk 0:02:52]}  O-O {[%clk 0:02:45]} 13. e5 {[%clk 0:02:46]}  Nfd7 {[%clk 0:02:43]} 14. d4 {[%clk 0:02:47]}  Na6 {[%clk 0:02:43]} 15. c3 {[%clk 0:02:46]}  Nc7 {[%clk 0:02:29]} 16. h4 {[%clk 0:02:45]}  b5 {[%clk 0:02:29]} 17. Nh5 {[%clk 0:02:20]}  Kh8 {[%clk 0:02:26]} 18. Qg4 {[%clk 0:02:06]}  Rg8 {[%clk 0:02:17]} 19. Rfe1 {[%clk 0:01:50]}  c5 {[%clk 0:02:15]} 20. Re3 {[%clk 0:01:42]}  b4 {[%clk 0:02:12]} 21. Rf3 {[%clk 0:01:34]}  bxc3 {[%clk 0:02:03]} 22. Bxc3 {[%clk 0:01:31]}  Qe8 {[%clk 0:02:00]} 23. Rc1 {[%clk 0:01:18]}  Na6 {[%clk 0:01:34]} 24. Bf1 {[%clk 0:01:17]}  Nc7 {[%clk 0:01:28]} 25. Bd3 {[%clk 0:01:13]}  Bxd3 {[%clk 0:01:24]} 26. Rxd3 {[%clk 0:01:14]}  Ra6 {[%clk 0:01:08]} 27. Rf3 {[%clk 0:01:12]}  Na8 {[%clk 0:00:58]} 28. Qf4 {[%clk 0:01:03]}  Rf8 {[%clk 0:00:56]} 29. Qg4 {[%clk 0:00:59]}  Rg8 {[%clk 0:00:55]} 30. Qf4 {[%clk 0:00:57]}  Rf8 {[%clk 0:00:52]} 31. Qg4 {[%clk 0:00:56]}  g6 {[%clk 0:00:46]} 32. Nf6 {[%clk 0:00:42]}  Bxf6 {[%clk 0:00:46]} 33. exf6 {[%clk 0:00:43]}  cxd4 {[%clk 0:00:46]} 34. Bxd4 {[%clk 0:00:40]}  e5 {[%clk 0:00:45]} 35. Re1 {[%clk 0:00:28]}  Re6 {[%clk 0:00:45]} 36. Bb2 {[%clk 0:00:22]}  Nab6 {[%clk 0:00:42]} 37. Rfe3 {[%clk 0:00:16]}  d4 {[%clk 0:00:40]} 38. Bxd4 {[%clk 0:00:16]}  Nxf6 {[%clk 0:00:28]} 39. Rxe5 {[%clk 0:00:11]}  Rxe5 {[%clk 0:00:23]} 40. Rxe5 {[%clk 0:00:12]}  Qd8 {[%clk 0:00:24]} 41. Qf4 {[%clk 0:00:10]}  Kh7 {[%clk 0:00:21]} 42. Nf3 {[%clk 0:00:07]}  Nbd5 {[%clk 0:00:20]} 43. Qd2 {[%clk 0:00:06]}  Qd6 {[%clk 0:00:19]} 44. Qe2 {[%clk 0:00:06]}  Rb8 {[%clk 0:00:19]} 45. Qc4 {[%clk 0:00:05]}  Qd7 {[%clk 0:00:19]} 46. Re1 {[%clk 0:00:04]}  Qh3 {[%clk 0:00:18]} 47. Ne5 {[%clk 0:00:04]}  Re8 {[%clk 0:00:17]} 48. Qf1 {[%clk 0:00:04]}  Qf5 {[%clk 0:00:16]} 49. Qd3 {[%clk 0:00:03]}  Rxe5 {[%clk 0:00:16]} 50. Qxf5 {[%clk 0:00:02]}  Rxe1+ {[%clk 0:00:17]} 51. Kg2 {[%clk 0:00:02]}  gxf5 {[%clk 0:00:18]} 0-1


[Site "https://www.chess.com"]